[Event "Titled Tuesday Blitz July 25 Late 2023"]
[White "Mickiewicz, Piotr"]
[Black "Medina Paz, Miguel"]
[WhiteFideId "1114891"]
[BlackFideId "7300379"]
[WhiteElo "2443"]
[BlackElo "2588"]
[Result "0-1"]
[Round "6"]
[TimeControl "180+2"]
[Date "2023.07.25"]
[WhiteClock "0:00:03"]
[BlackClock "0:01:06"]
[Board "73"]

1. Nf3 {[%clk 0:02:58]}  Nf6 {[%clk 0:02:59]} 2. g3 {[%clk 0:02:57]}  d5 {[%clk 0:02:59]} 3. Bg2 {[%clk 0:02:57]}  c6 {[%clk 0:03:00]} 4. O-O {[%clk 0:02:57]}  Bg4 {[%clk 0:03:01]} 5. d3 {[%clk 0:02:57]}  Nbd7 {[%clk 0:03:00]} 6. Nbd2 {[%clk 0:02:57]}  e6 {[%clk 0:03:00]} 7. h3 {[%clk 0:02:54]}  Bh5 {[%clk 0:03:00]} 8. e4 {[%clk 0:02:49]}  dxe4 {[%clk 0:02:52]} 9. dxe4 {[%clk 0:02:46]}  Qc7 {[%clk 0:02:45]} 10. Qe2 {[%clk 0:02:45]}  e5 {[%clk 0:02:45]} 11. g4 {[%clk 0:02:38]}  Bg6 {[%clk 0:02:44]} 12. Nh4 {[%clk 0:02:37]}  Nc5 {[%clk 0:02:33]} 13. b3 {[%clk 0:02:23]}  Ne6 {[%clk 0:02:32]} 14. Nxg6 {[%clk 0:02:17]}  hxg6 {[%clk 0:02:32]} 15. Nf3 {[%clk 0:02:14]}  Bc5 {[%clk 0:02:26]} 16. Rd1 {[%clk 0:01:57]}  Nd7 {[%clk 0:02:21]} 17. Kf1 {[%clk 0:01:53]}  O-O-O {[%clk 0:02:20]} 18. Be3 {[%clk 0:01:51]}  Bxe3 {[%clk 0:02:17]} 19. fxe3 {[%clk 0:01:50]}  f6 {[%clk 0:02:10]} 20. b4 {[%clk 0:01:46]}  Rdf8 {[%clk 0:01:57]} 21. Kg1 {[%clk 0:01:45]}  Ng5 {[%clk 0:01:52]} 22. Nxg5 {[%clk 0:01:42]}  fxg5 {[%clk 0:01:53]} 23. c4 {[%clk 0:01:39]}  c5 {[%clk 0:01:51]} 24. a3 {[%clk 0:01:36]}  Nf6 {[%clk 0:01:49]} 25. Rd2 {[%clk 0:01:11]}  Rd8 {[%clk 0:01:49]} 26. Rd5 {[%clk 0:00:56]}  Nxd5 {[%clk 0:01:47]} 27. exd5 {[%clk 0:00:56]}  e4 {[%clk 0:01:47]} 28. bxc5 {[%clk 0:00:37]}  Qxc5 {[%clk 0:01:47]} 29. Rd1 {[%clk 0:00:33]}  Qd6 {[%clk 0:01:41]} 30. Qb2 {[%clk 0:00:27]}  Rdf8 {[%clk 0:01:35]} 31. Rb1 {[%clk 0:00:26]}  b6 {[%clk 0:01:35]} 32. c5 {[%clk 0:00:23]}  Qg3 {[%clk 0:01:32]} 33. Qc3 {[%clk 0:00:17]}  b5 {[%clk 0:01:13]} 34. Rxb5 {[%clk 0:00:05]}  Rxh3 {[%clk 0:01:07]} 35. Rb8+ {[%clk 0:00:04]}  Kxb8 {[%clk 0:01:07]} 36. Qb4+ {[%clk 0:00:03]}  Kc8 {[%clk 0:01:07]} 37. Qxe4 {[%clk 0:00:03]}  Qh2# {[%clk 0:01:06]} 0-1


[Site "https://www.chess.com"]

[Event "Titled Tuesday Blitz July 25 Late 2023"]
[White "Hajiyev, Kanan"]
[Black "Rios Escobar, Adan"]
[WhiteFideId "13404148"]
[BlackFideId "3403645"]
[WhiteElo "2584"]
[BlackElo "2430"]
[Result "1-0"]
[Round "6"]
[TimeControl "180+2"]
[Date "2023.07.25"]
[WhiteClock "0:00:17"]
[BlackClock "0:00:00"]
[Board "74"]

1. d4 {[%clk 0:03:00]}  Nf6 {[%clk 0:02:59]} 2. Nf3 {[%clk 0:03:01]}  g6 {[%clk 0:03:00]} 3. c4 {[%clk 0:03:02]}  Bg7 {[%clk 0:02:59]} 4. g3 {[%clk 0:03:03]}  c6 {[%clk 0:02:58]} 5. Bg2 {[%clk 0:03:04]}  d5 {[%clk 0:02:58]} 6. O-O {[%clk 0:03:04]}  dxc4 {[%clk 0:02:59]} 7. Ne5 {[%clk 0:03:04]}  Ng4 {[%clk 0:02:56]} 8. Nf3 {[%clk 0:03:02]}  Nf6 {[%clk 0:02:53]} 9. a4 {[%clk 0:03:00]}  Ne4 {[%clk 0:02:49]} 10. Na3 {[%clk 0:02:54]}  Nd6 {[%clk 0:02:47]} 11. Ne5 {[%clk 0:02:53]}  a5 {[%clk 0:02:39]} 12. Naxc4 {[%clk 0:02:47]}  Na6 {[%clk 0:02:35]} 13. Nxd6+ {[%clk 0:02:41]}  Qxd6 {[%clk 0:02:31]} 14. Bf4 {[%clk 0:02:38]}  Qd8 {[%clk 0:02:27]} 15. Qb3 {[%clk 0:02:34]}  O-O {[%clk 0:02:24]} 16. Rfd1 {[%clk 0:02:31]}  Nb4 {[%clk 0:02:24]} 17. Rac1 {[%clk 0:02:15]}  Be6 {[%clk 0:02:22]} 18. Qf3 {[%clk 0:02:16]}  f6 {[%clk 0:02:01]} 19. Nc4 {[%clk 0:02:08]}  g5 {[%clk 0:01:54]} 20. Bd2 {[%clk 0:01:56]}  Bf7 {[%clk 0:01:20]} 21. Bxb4 {[%clk 0:01:14]}  axb4 {[%clk 0:01:19]} 22. b3 {[%clk 0:01:15]}  Qc7 {[%clk 0:00:57]} 23. e4 {[%clk 0:01:10]}  Rad8 {[%clk 0:00:54]} 24. Qe3 {[%clk 0:00:58]}  h5 {[%clk 0:00:45]} 25. h3 {[%clk 0:00:51]}  Bh6 {[%clk 0:00:45]} 26. Qd2 {[%clk 0:00:41]}  Kg7 {[%clk 0:00:44]} 27. Qxb4 {[%clk 0:00:41]}  g4 {[%clk 0:00:40]} 28. Rc2 {[%clk 0:00:42]}  h4 {[%clk 0:00:34]} 29. e5 {[%clk 0:00:33]}  hxg3 {[%clk 0:00:32]} 30. fxg3 {[%clk 0:00:31]}  Bxc4 {[%clk 0:00:14]} 31. Rxc4 {[%clk 0:00:21]}  gxh3 {[%clk 0:00:11]} 32. Bxh3 {[%clk 0:00:21]}  fxe5 {[%clk 0:00:12]} 33. Re1 {[%clk 0:00:18]}  exd4 {[%clk 0:00:00]} 34. Rxe7+ {[%clk 0:00:17]} 1-0


[Site "https://www.chess.com"]

[Event "Titled Tuesday Blitz July 25 Late 2023"]
[White "Vega Gutierrez, Sabrina"]
[Black "Sivakumar, Shaaketh"]
[WhiteFideId "2219026"]
[BlackFideId "30940176"]
[WhiteElo "2429"]
[BlackElo "2583"]
[Result "1-0"]
[Round "6"]
[TimeControl "180+2"]
[Date "2023.07.25"]
[WhiteClock "0:00:03"]
[BlackClock "0:00:04"]
[Board "75"]

1. e4 {[%clk 0:03:00]}  e6 {[%clk 0:02:59]} 2. Qe2 {[%clk 0:03:00]}  Ne7 {[%clk 0:02:58]} 3. g3 {[%clk 0:02:42]}  d5 {[%clk 0:02:53]} 4. d3 {[%clk 0:02:42]}  c5 {[%clk 0:02:50]} 5. Nf3 {[%clk 0:02:41]}  Nbc6 {[%clk 0:02:51]} 6. Bg2 {[%clk 0:02:41]}  g6 {[%clk 0:02:51]} 7. O-O {[%clk 0:02:40]}  Bg7 {[%clk 0:02:52]} 8. c3 {[%clk 0:02:40]}  O-O {[%clk 0:02:52]} 9. Re1 {[%clk 0:02:40]}  b5 {[%clk 0:02:50]} 10. Nbd2 {[%clk 0:02:03]}  a5 {[%clk 0:02:43]} 11. exd5 {[%clk 0:01:56]}  exd5 {[%clk 0:02:42]} 12. Nb3 {[%clk 0:01:55]}  c4 {[%clk 0:02:33]} 13. Nc5 {[%clk 0:01:55]}  Qd6 {[%clk 0:02:29]} 14. d4 {[%clk 0:01:54]}  Bf5 {[%clk 0:02:13]} 15. Bf4 {[%clk 0:01:53]}  Qd8 {[%clk 0:02:12]} 16. h3 {[%clk 0:01:42]}  b4 {[%clk 0:02:07]} 17. g4 {[%clk 0:01:41]}  Bc8 {[%clk 0:02:07]} 18. Qd2 {[%clk 0:01:38]}  Re8 {[%clk 0:02:00]} 19. Re2 {[%clk 0:01:36]}  bxc3 {[%clk 0:01:47]} 20. bxc3 {[%clk 0:01:35]}  Qb6 {[%clk 0:01:22]} 21. Rae1 {[%clk 0:01:34]}  Ra7 {[%clk 0:01:21]} 22. Bh6 {[%clk 0:01:29]}  Bh8 {[%clk 0:01:18]} 23. Ng5 {[%clk 0:01:18]}  Bg7 {[%clk 0:01:11]} 24. Bxg7 {[%clk 0:00:33]}  Kxg7 {[%clk 0:01:11]} 25. Bxd5 {[%clk 0:00:30]}  Nd8 {[%clk 0:01:04]} 26. Bxc4 {[%clk 0:00:23]}  Rc7 {[%clk 0:00:40]} 27. Qf4 {[%clk 0:00:22]}  f6 {[%clk 0:00:19]} 28. Nge4 {[%clk 0:00:15]}  Nf7 {[%clk 0:00:16]} 29. Bxf7 {[%clk 0:00:11]}  Kxf7 {[%clk 0:00:15]} 30. Nd6+ {[%clk 0:00:11]}  Kf8 {[%clk 0:00:08]} 31. Qxf6+ {[%clk 0:00:11]}  Kg8 {[%clk 0:00:08]} 32. Qf7+ {[%clk 0:00:10]}  Kh8 {[%clk 0:00:08]} 33. Qxe8+ {[%clk 0:00:10]}  Kg7 {[%clk 0:00:09]} 34. Rxe7+ {[%clk 0:00:09]}  Kh6 {[%clk 0:00:08]} 35. Qf8+ {[%clk 0:00:08]}  Kg5 {[%clk 0:00:07]} 36. Nce4+ {[%clk 0:00:06]}  Kh4 {[%clk 0:00:06]} 37. Qf6+ {[%clk 0:00:04]}  Kxh3 {[%clk 0:00:04]} 38. Re3+ {[%clk 0:00:03]}  Kxg4 {[%clk 0:00:03]} 39. Rg3+ {[%clk 0:00:03]}  Kh5 {[%clk 0:00:04]} 40. Qg5# {[%clk 0:00:03]} 1-0


[Site "https://www.chess.com"]

[Event "Titled Tuesday Blitz July 25 Late 2023"]
[White "Rakitic2010"]
[Black "Cappelletto, Joshuaede"]
[BlackFideId "2824383"]
[WhiteElo "2428"]
[BlackElo "2576"]
[Result "0-1"]
[Round "6"]
[TimeControl "180+2"]
[Date "2023.07.25"]
[WhiteClock "0:00:08"]
[BlackClock "0:00:42"]
[Board "76"]

1. e4 {[%clk 0:02:53]}  c5 {[%clk 0:03:00]} 2. Nf3 {[%clk 0:02:50]}  e6 {[%clk 0:03:00]} 3. d4 {[%clk 0:02:50]}  cxd4 {[%clk 0:03:01]} 4. Nxd4 {[%clk 0:02:51]}  a6 {[%clk 0:03:01]} 5. Bd3 {[%clk 0:02:50]}  Bc5 {[%clk 0:02:55]} 6. Nb3 {[%clk 0:02:49]}  Ba7 {[%clk 0:02:55]} 7. O-O {[%clk 0:02:49]}  Nf6 {[%clk 0:02:55]} 8. Qe2 {[%clk 0:02:49]}  Nc6 {[%clk 0:02:52]} 9. Nc3 {[%clk 0:02:48]}  O-O {[%clk 0:02:46]} 10. Be3 {[%clk 0:02:49]}  Bxe3 {[%clk 0:02:43]} 11. Qxe3 {[%clk 0:02:50]}  d5 {[%clk 0:02:42]} 12. exd5 {[%clk 0:02:49]}  Nxd5 {[%clk 0:02:42]} 13. Nxd5 {[%clk 0:02:49]}  Qxd5 {[%clk 0:02:43]} 14. Rad1 {[%clk 0:02:49]}  Qh5 {[%clk 0:02:42]} 15. Nc5 {[%clk 0:02:40]}  Ne5 {[%clk 0:02:17]} 16. Be2 {[%clk 0:02:24]}  Ng4 {[%clk 0:02:16]} 17. Bxg4 {[%clk 0:02:24]}  Qxg4 {[%clk 0:02:16]} 18. Rd4 {[%clk 0:02:21]}  Qh5 {[%clk 0:02:14]} 19. Ne4 {[%clk 0:02:17]}  e5 {[%clk 0:02:08]} 20. Qg3 {[%clk 0:01:53]}  f5 {[%clk 0:01:50]} 21. Qxe5 {[%clk 0:01:43]}  Re8 {[%clk 0:01:44]} 22. Ng3 {[%clk 0:01:08]}  Rxe5 {[%clk 0:01:38]} 23. Nxh5 {[%clk 0:01:08]}  Be6 {[%clk 0:01:35]} 24. Rfd1 {[%clk 0:01:07]}  Bxa2 {[%clk 0:01:21]} 25. b3 {[%clk 0:00:54]}  Rc8 {[%clk 0:01:16]} 26. Rd8+ {[%clk 0:00:47]}  Rxd8 {[%clk 0:01:15]} 27. Rxd8+ {[%clk 0:00:47]}  Kf7 {[%clk 0:01:16]} 28. Kf1 {[%clk 0:00:47]}  Bb1 {[%clk 0:01:10]} 29. Rd2 {[%clk 0:00:34]}  Rc5 {[%clk 0:01:09]} 30. c4 {[%clk 0:00:30]}  Rc7 {[%clk 0:01:03]} 31. f3 {[%clk 0:00:28]}  b5 {[%clk 0:01:00]} 32. cxb5 {[%clk 0:00:25]}  axb5 {[%clk 0:01:01]} 33. Nf4 {[%clk 0:00:20]}  Bc2 {[%clk 0:00:48]} 34. b4 {[%clk 0:00:19]}  Bb3 {[%clk 0:00:46]} 35. Kf2 {[%clk 0:00:19]}  Bc4 {[%clk 0:00:46]} 36. Nd5 {[%clk 0:00:19]}  Rd7 {[%clk 0:00:45]} 37. Ra2 {[%clk 0:00:10]}  Bxa2 {[%clk 0:00:44]} 38. Nc3 {[%clk 0:00:08]}  Bc4 {[%clk 0:00:44]} 39. Ke3 {[%clk 0:00:08]}  Rd3+ {[%clk 0:00:44]} 40. Kf4 {[%clk 0:00:09]}  Rxc3 {[%clk 0:00:45]} 41. g4 {[%clk 0:00:09]}  Rb3 {[%clk 0:00:45]} 42. Kg5 {[%clk 0:00:10]}  Rxb4 {[%clk 0:00:46]} 43. f4 {[%clk 0:00:10]}  fxg4 {[%clk 0:00:46]} 44. h4 {[%clk 0:00:10]}  Rb1 {[%clk 0:00:43]} 45. f5 {[%clk 0:00:09]}  Re1 {[%clk 0:00:43]} 46. f6 {[%clk 0:00:09]}  gxf6+ {[%clk 0:00:43]} 47. Kh5 {[%clk 0:00:09]}  b4 {[%clk 0:00:42]} 48. Kh6 {[%clk 0:00:09]}  b3 {[%clk 0:00:42]} 49. h5 {[%clk 0:00:09]}  b2 {[%clk 0:00:43]} 50. Kxh7 {[%clk 0:00:09]}  b1=Q+ {[%clk 0:00:43]} 51. Kh6 {[%clk 0:00:09]}  Qc1+ {[%clk 0:00:41]} 52. Kh7 {[%clk 0:00:09]}  Qg5 {[%clk 0:00:42]} 53. h6 {[%clk 0:00:08]}  Qg8# {[%clk 0:00:42]} 0-1


[Site "https://www.chess.com"]

[Event "Titled Tuesday Blitz July 25 Late 2023"]
[White "Yu, Jennifer"]
[Black "Ozates, Tuna"]
[WhiteFideId "2078341"]
[BlackFideId "6354521"]
[WhiteElo "2371"]
[BlackElo "2574"]
[Result "0-1"]
[Round "6"]
[TimeControl "180+2"]
[Date "2023.07.25"]
[WhiteClock "0:00:03"]
[BlackClock "0:00:08"]
[Board "78"]

1. d4 {[%clk 0:03:00]}  Nf6 {[%clk 0:02:56]} 2. c4 {[%clk 0:02:59]}  e6 {[%clk 0:02:56]} 3. Nc3 {[%clk 0:02:57]}  Bb4 {[%clk 0:02:55]} 4. a3 {[%clk 0:02:55]}  Bxc3+ {[%clk 0:02:53]} 5. bxc3 {[%clk 0:02:56]}  O-O {[%clk 0:02:53]} 6. g3 {[%clk 0:02:53]}  d6 {[%clk 0:02:47]} 7. Bg5 {[%clk 0:02:44]}  h6 {[%clk 0:02:46]} 8. Bxf6 {[%clk 0:02:43]}  Qxf6 {[%clk 0:02:46]} 9. Bg2 {[%clk 0:02:43]}  e5 {[%clk 0:02:34]} 10. Nf3 {[%clk 0:02:35]}  Re8 {[%clk 0:02:32]} 11. O-O {[%clk 0:02:29]}  Nc6 {[%clk 0:02:32]} 12. e3 {[%clk 0:02:22]}  Bg4 {[%clk 0:02:31]} 13. h3 {[%clk 0:02:18]}  Bh5 {[%clk 0:02:25]} 14. g4 {[%clk 0:02:17]}  Bg6 {[%clk 0:02:25]} 15. Nd2 {[%clk 0:02:10]}  Bd3 {[%clk 0:02:20]} 16. Ne4 {[%clk 0:01:52]}  Bxe4 {[%clk 0:02:18]} 17. Bxe4 {[%clk 0:01:53]}  exd4 {[%clk 0:02:13]} 18. Bxc6 {[%clk 0:01:53]}  bxc6 {[%clk 0:02:13]} 19. cxd4 {[%clk 0:01:53]}  h5 {[%clk 0:02:07]} 20. Rb1 {[%clk 0:01:48]}  hxg4 {[%clk 0:02:05]} 21. hxg4 {[%clk 0:01:41]}  g5 {[%clk 0:01:57]} 22. Kg2 {[%clk 0:01:36]}  Kg7 {[%clk 0:01:54]} 23. Rb7 {[%clk 0:01:22]}  Rh8 {[%clk 0:01:54]} 24. Rh1 {[%clk 0:01:10]}  Rxh1 {[%clk 0:01:53]} 25. Qxh1 {[%clk 0:01:10]}  Rh8 {[%clk 0:01:53]} 26. Qa1 {[%clk 0:00:30]}  d5 {[%clk 0:01:34]} 27. cxd5 {[%clk 0:00:22]}  Qh6 {[%clk 0:01:18]} 28. Kf3 {[%clk 0:00:18]}  Qh3+ {[%clk 0:01:15]} 29. Ke2 {[%clk 0:00:18]}  Qxg4+ {[%clk 0:01:15]} 30. Kd2 {[%clk 0:00:17]}  Rh2 {[%clk 0:01:12]} 31. Qf1 {[%clk 0:00:16]}  Qf3 {[%clk 0:01:05]} 32. Qd3 {[%clk 0:00:13]}  Qxf2+ {[%clk 0:00:59]} 33. Kc3 {[%clk 0:00:14]}  cxd5 {[%clk 0:00:47]} 34. Rb1 {[%clk 0:00:08]}  Qa2 {[%clk 0:00:36]} 35. Kb4 {[%clk 0:00:07]}  Rc2 {[%clk 0:00:12]} 36. Qf5 {[%clk 0:00:05]}  Rc4+ {[%clk 0:00:08]} 37. Kb5 {[%clk 0:00:05]}  c6+ {[%clk 0:00:04]} 38. Ka6 {[%clk 0:00:05]}  Qxa3+ {[%clk 0:00:04]} 39. Kb7 {[%clk 0:00:06]}  Rb4+ {[%clk 0:00:04]} 40. Rxb4 {[%clk 0:00:02]}  Qxb4+ {[%clk 0:00:05]} 41. Kc7 {[%clk 0:00:02]}  Qe7+ {[%clk 0:00:06]} 42. Kxc6 {[%clk 0:00:02]}  Qe6+ {[%clk 0:00:06]} 43. Qxe6 {[%clk 0:00:03]}  fxe6 {[%clk 0:00:07]} 44. Kb7 {[%clk 0:00:04]}  g4 {[%clk 0:00:07]} 45. Kxa7 {[%clk 0:00:03]}  g3 {[%clk 0:00:08]} 0-1


[Site "https://www.chess.com"]

[Event "Titled Tuesday Blitz July 25 Late 2023"]
[White "Vovk, Orest"]
[Black "Butolo, Alexandru-Mircea"]
[WhiteFideId "14113490"]
[BlackFideId "1261649"]
[WhiteElo "2571"]
[BlackElo "1856"]
[Result "1-0"]
[Round "6"]
[TimeControl "180+2"]
[Date "2023.07.25"]
[WhiteClock "0:01:23"]
[BlackClock "0:01:24"]
[Board "79"]

1. Nh3 {[%clk 0:03:00]}  Nf6 {[%clk 0:02:59]} 2. g4 {[%clk 0:03:00]}  Nxg4 {[%clk 0:02:57]} 3. Rg1 {[%clk 0:03:00]}  Nf6 {[%clk 0:02:57]} 4. c4 {[%clk 0:02:59]}  g6 {[%clk 0:02:55]} 5. Nc3 {[%clk 0:02:59]}  d6 {[%clk 0:02:52]} 6. d4 {[%clk 0:02:59]}  Bg7 {[%clk 0:02:48]} 7. Nf4 {[%clk 0:02:51]}  Nc6 {[%clk 0:02:42]} 8. h4 {[%clk 0:02:47]}  e5 {[%clk 0:02:36]} 9. dxe5 {[%clk 0:02:46]}  dxe5 {[%clk 0:02:33]} 10. Qxd8+ {[%clk 0:02:41]}  Nxd8 {[%clk 0:02:24]} 11. Nfd5 {[%clk 0:02:42]}  Nxd5 {[%clk 0:02:21]} 12. Nxd5 {[%clk 0:02:42]}  Ne6 {[%clk 0:02:18]} 13. Bh3 {[%clk 0:02:41]}  f5 {[%clk 0:02:11]} 14. e4 {[%clk 0:02:15]}  Nd4 {[%clk 0:02:11]} 15. Nxc7+ {[%clk 0:02:10]}  Kd8 {[%clk 0:02:11]} 16. Nxa8 {[%clk 0:02:10]}  Nc2+ {[%clk 0:02:01]} 17. Ke2 {[%clk 0:02:06]}  Nxa1 {[%clk 0:01:49]} 18. Bg5+ {[%clk 0:02:06]}  Kd7 {[%clk 0:01:45]} 19. Rxa1 {[%clk 0:02:02]}  Kc6 {[%clk 0:01:45]} 20. b4 {[%clk 0:01:47]}  fxe4 {[%clk 0:01:40]} 21. b5+ {[%clk 0:01:43]}  Kc5 {[%clk 0:01:37]} 22. Be7+ {[%clk 0:01:37]}  Kd4 {[%clk 0:01:30]} 23. Rd1+ {[%clk 0:01:27]}  Kxc4 {[%clk 0:01:24]} 24. Rc1+ {[%clk 0:01:23]} 1-0


[Site "https://www.chess.com"]

[Event "Titled Tuesday Blitz July 25 Late 2023"]
[White "Tifferet, Shaked"]
[Black "Miladinovic, Igor"]
[WhiteFideId "2811529"]
[BlackFideId "4203380"]
[WhiteElo "2482"]
[BlackElo "2809"]
[Result "0-1"]
[Round "6"]
[TimeControl "180+2"]
[Date "2023.07.25"]
[WhiteClock "0:00:14"]
[BlackClock "0:01:49"]
[Board "80"]

1. e4 {[%clk 0:03:00]}  c6 {[%clk 0:02:58]} 2. Nc3 {[%clk 0:02:59]}  d5 {[%clk 0:02:59]} 3. d4 {[%clk 0:02:59]}  dxe4 {[%clk 0:02:59]} 4. Nxe4 {[%clk 0:03:00]}  Nf6 {[%clk 0:02:59]} 5. Nxf6+ {[%clk 0:02:59]}  exf6 {[%clk 0:03:00]} 6. c3 {[%clk 0:02:56]}  Bd6 {[%clk 0:03:00]} 7. Bd3 {[%clk 0:02:56]}  O-O {[%clk 0:03:01]} 8. Ne2 {[%clk 0:02:57]}  Re8 {[%clk 0:03:01]} 9. Be3 {[%clk 0:02:57]}  Nd7 {[%clk 0:02:59]} 10. Qc2 {[%clk 0:02:57]}  Nf8 {[%clk 0:02:59]} 11. O-O {[%clk 0:02:52]}  Qc7 {[%clk 0:02:58]} 12. Ng3 {[%clk 0:02:51]}  Be6 {[%clk 0:02:38]} 13. a4 {[%clk 0:02:48]}  Rad8 {[%clk 0:02:37]} 14. Rae1 {[%clk 0:02:47]}  c5 {[%clk 0:02:35]} 15. dxc5 {[%clk 0:02:25]}  Bxc5 {[%clk 0:02:36]} 16. Bxc5 {[%clk 0:02:20]}  Qxc5 {[%clk 0:02:37]} 17. Re3 {[%clk 0:02:08]}  Bb3 {[%clk 0:02:31]} 18. Rxe8 {[%clk 0:01:53]}  Bxc2 {[%clk 0:02:28]} 19. Rxd8 {[%clk 0:01:53]}  Bxd3 {[%clk 0:02:29]} 20. Rxd3 {[%clk 0:01:54]}  g6 {[%clk 0:02:28]} 21. Ne4 {[%clk 0:01:40]}  Qc6 {[%clk 0:02:21]} 22. Rd4 {[%clk 0:01:34]}  f5 {[%clk 0:02:19]} 23. Ng5 {[%clk 0:01:27]}  h6 {[%clk 0:02:19]} 24. Nf3 {[%clk 0:01:25]}  Ne6 {[%clk 0:02:19]} 25. Rh4 {[%clk 0:01:20]}  h5 {[%clk 0:02:11]} 26. Rd1 {[%clk 0:01:07]}  f4 {[%clk 0:02:08]} 27. Nd4 {[%clk 0:00:33]}  Qxa4 {[%clk 0:01:56]} 28. b3 {[%clk 0:00:33]}  Qd7 {[%clk 0:01:57]} 29. Kf1 {[%clk 0:00:21]}  Nxd4 {[%clk 0:01:50]} 30. Rxd4 {[%clk 0:00:18]}  Qb5+ {[%clk 0:01:50]} 31. Rc4 {[%clk 0:00:15]}  Qxb3 {[%clk 0:01:49]} 32. Rhxf4 {[%clk 0:00:14]}  Qd1# {[%clk 0:01:49]} 0-1


[Site "https://www.chess.com"]

[Event "Titled Tuesday Blitz July 25 Late 2023"]
[White "Wu, Derek"]
[Black "SilverCityIndigo"]
[WhiteFideId "30914558"]
[WhiteElo "2753"]
[BlackElo "2444"]
[Result "1-0"]
[Round "6"]
[TimeControl "180+2"]
[Date "2023.07.25"]
[WhiteClock "0:00:26"]
[BlackClock "0:00:03"]
[Board "83"]

1. e4 {[%clk 0:03:00]}  Na6 {[%clk 0:03:00]} 2. d4 {[%clk 0:03:00]}  c6 {[%clk 0:03:00]} 3. Nf3 {[%clk 0:03:01]}  Nc7 {[%clk 0:03:01]} 4. Bd3 {[%clk 0:03:01]}  d5 {[%clk 0:03:02]} 5. e5 {[%clk 0:03:01]}  g6 {[%clk 0:03:02]} 6. Nbd2 {[%clk 0:03:01]}  Bg7 {[%clk 0:03:02]} 7. O-O {[%clk 0:03:00]}  h5 {[%clk 0:03:02]} 8. h3 {[%clk 0:03:01]}  h4 {[%clk 0:03:03]} 9. Re1 {[%clk 0:03:01]}  Nh6 {[%clk 0:03:03]} 10. a4 {[%clk 0:03:00]}  Bf5 {[%clk 0:03:03]} 11. Be2 {[%clk 0:02:58]}  e6 {[%clk 0:02:57]} 12. Nf1 {[%clk 0:02:58]}  Be4 {[%clk 0:02:57]} 13. Bg5 {[%clk 0:02:57]}  f6 {[%clk 0:02:44]} 14. exf6 {[%clk 0:02:58]}  Bxf6 {[%clk 0:02:45]} 15. Bf4 {[%clk 0:02:51]}  g5 {[%clk 0:02:40]} 16. Be5 {[%clk 0:02:45]}  Nf7 {[%clk 0:02:35]} 17. N1d2 {[%clk 0:02:40]}  g4 {[%clk 0:02:26]} 18. hxg4 {[%clk 0:02:36]}  h3 {[%clk 0:02:27]} 19. Bd3 {[%clk 0:02:33]}  Bxd3 {[%clk 0:02:22]} 20. cxd3 {[%clk 0:02:34]}  hxg2 {[%clk 0:02:22]} 21. Bxc7 {[%clk 0:02:24]}  Qxc7 {[%clk 0:02:04]} 22. Rxe6+ {[%clk 0:02:24]}  Be7 {[%clk 0:02:04]} 23. Qe2 {[%clk 0:02:20]}  Ng5 {[%clk 0:01:56]} 24. Kxg2 {[%clk 0:02:08]}  Nh3 {[%clk 0:01:38]} 25. Qe5 {[%clk 0:01:38]}  Nf4+ {[%clk 0:01:36]} 26. Kg1 {[%clk 0:01:37]}  Nh3+ {[%clk 0:00:59]} 27. Kf1 {[%clk 0:01:35]}  Qxe5 {[%clk 0:00:59]} 28. Rxe5 {[%clk 0:01:31]}  Nf4 {[%clk 0:01:00]} 29. Rae1 {[%clk 0:01:28]}  Rh1+ {[%clk 0:00:47]} 30. Ng1 {[%clk 0:01:28]}  Rh7 {[%clk 0:00:35]} 31. R1e3 {[%clk 0:01:28]}  Kd7 {[%clk 0:00:32]} 32. Rf5 {[%clk 0:01:25]}  Bd6 {[%clk 0:00:29]} 33. Ndf3 {[%clk 0:01:22]}  Rg8 {[%clk 0:00:28]} 34. g5 {[%clk 0:01:15]}  Ne6 {[%clk 0:00:25]} 35. Ke2 {[%clk 0:00:56]}  Rh1 {[%clk 0:00:20]} 36. Rf7+ {[%clk 0:00:54]}  Be7 {[%clk 0:00:19]} 37. Ne5+ {[%clk 0:00:52]}  Ke8 {[%clk 0:00:19]} 38. Ngf3 {[%clk 0:00:46]}  Bxg5 {[%clk 0:00:12]} 39. Nxg5 {[%clk 0:00:41]}  Rxg5 {[%clk 0:00:12]} 40. Rxb7 {[%clk 0:00:37]}  Rgg1 {[%clk 0:00:10]} 41. Nf3 {[%clk 0:00:33]}  Rh6 {[%clk 0:00:03]} 42. Nxg1 {[%clk 0:00:26]} 1-0


[Site "https://www.chess.com"]

[Event "Titled Tuesday Blitz July 25 Late 2023"]
[White "Gatterer, Florian"]
[Black "Bernabeu Lopez, Carlos Javier"]
[WhiteFideId "811688"]
[BlackFideId "2235366"]
[WhiteElo "2435"]
[BlackElo "2645"]
[Result "0-1"]
[Round "6"]
[TimeControl "180+2"]
[Date "2023.07.25"]
[WhiteClock "0:00:00"]
[BlackClock "0:01:12"]
[Board "84"]

1. b3 {[%clk 0:03:00]}  e5 {[%clk 0:02:58]} 2. c4 {[%clk 0:03:01]}  Nc6 {[%clk 0:02:59]} 3. Bb2 {[%clk 0:03:01]}  g6 {[%clk 0:02:59]} 4. Nf3 {[%clk 0:03:00]}  Bg7 {[%clk 0:03:00]} 5. e3 {[%clk 0:03:00]}  d6 {[%clk 0:02:58]} 6. d4 {[%clk 0:03:00]}  Nge7 {[%clk 0:02:58]} 7. dxe5 {[%clk 0:02:59]}  Nxe5 {[%clk 0:02:59]} 8. Nxe5 {[%clk 0:02:59]}  Bxe5 {[%clk 0:03:00]} 9. Bxe5 {[%clk 0:02:58]}  dxe5 {[%clk 0:03:01]} 10. Qxd8+ {[%clk 0:02:57]}  Kxd8 {[%clk 0:03:02]} 11. Nc3 {[%clk 0:02:52]}  c6 {[%clk 0:03:02]} 12. O-O-O+ {[%clk 0:02:48]}  Kc7 {[%clk 0:03:03]} 13. Be2 {[%clk 0:02:47]}  Be6 {[%clk 0:02:59]} 14. h4 {[%clk 0:02:47]}  Rad8 {[%clk 0:02:58]} 15. h5 {[%clk 0:02:43]}  Rxd1+ {[%clk 0:02:57]} 16. Bxd1 {[%clk 0:02:42]}  Rd8 {[%clk 0:02:56]} 17. hxg6 {[%clk 0:02:37]}  hxg6 {[%clk 0:02:57]} 18. Be2 {[%clk 0:02:35]}  b6 {[%clk 0:02:52]} 19. Rh7 {[%clk 0:02:21]}  Kd7 {[%clk 0:01:45]} 20. Ne4 {[%clk 0:02:19]}  f5 {[%clk 0:01:44]} 21. Ng5 {[%clk 0:01:58]}  Bg8 {[%clk 0:01:42]} 22. Rh1 {[%clk 0:01:34]}  c5 {[%clk 0:01:38]} 23. Bf3 {[%clk 0:01:33]}  a5 {[%clk 0:01:34]} 24. a4 {[%clk 0:01:14]}  Ke8 {[%clk 0:01:31]} 25. Rd1 {[%clk 0:01:01]}  Rxd1+ {[%clk 0:01:26]} 26. Kxd1 {[%clk 0:01:01]}  e4 {[%clk 0:01:27]} 27. Be2 {[%clk 0:01:01]}  Kf8 {[%clk 0:01:20]} 28. f3 {[%clk 0:01:01]}  Kg7 {[%clk 0:01:17]} 29. f4 {[%clk 0:00:55]}  Kf6 {[%clk 0:01:17]} 30. Nh3 {[%clk 0:00:54]}  Be6 {[%clk 0:01:13]} 31. g3 {[%clk 0:00:53]}  Nc6 {[%clk 0:01:12]} 32. Kd2 {[%clk 0:00:52]}  Nd8 {[%clk 0:01:12]} 33. Bd1 {[%clk 0:00:46]}  Nf7 {[%clk 0:01:12]} 34. Be2 {[%clk 0:00:46]}  g5 {[%clk 0:01:13]} 35. Bh5 {[%clk 0:00:39]}  g4 {[%clk 0:01:12]} 36. Nf2 {[%clk 0:00:38]}  Nd6 {[%clk 0:01:13]} 37. Nd1 {[%clk 0:00:23]}  Kg7 {[%clk 0:01:13]} 38. Nc3 {[%clk 0:00:20]}  Kh6 {[%clk 0:01:13]} 39. Be8 {[%clk 0:00:00]}  Nxe8 {[%clk 0:01:12]} 0-1


[Site "https://www.chess.com"]